[Event "Titled Tuesday Blitz June 1 2021"]
[White "Jobava, Baadur"]
[Black "Manafov, Vugar"]
[WhiteFideId "13601520"]
[BlackFideId "13410814"]
[WhiteElo "2748"]
[BlackElo "2274"]
[Result "0-1"]
[Round "03"]
[TimeControl "180+1"]
[Date "2021.06.01"]
[WhiteClock "0:00:52"]
[BlackClock "0:00:17"]

1. e4 {[%clk 0:03:00]}  Nf6 {[%clk 0:02:59]} 2. e5 {[%clk 0:02:59]}  Nd5 {[%clk 0:03:00]} 3. Nc3 {[%clk 0:03:00]}  Nxc3 {[%clk 0:03:00]} 4. dxc3 {[%clk 0:03:01]}  g6 {[%clk 0:03:00]} 5. Nf3 {[%clk 0:02:58]}  Bg7 {[%clk 0:03:00]} 6. Bf4 {[%clk 0:02:58]}  Nc6 {[%clk 0:03:00]} 7. Qd2 {[%clk 0:02:53]}  d6 {[%clk 0:03:00]} 8. exd6 {[%clk 0:02:51]}  cxd6 {[%clk 0:03:00]} 9. O-O-O {[%clk 0:02:51]}  Qa5 {[%clk 0:02:52]} 10. a3 {[%clk 0:02:49]}  O-O {[%clk 0:02:50]} 11. Bh6 {[%clk 0:02:44]}  Bg4 {[%clk 0:02:29]} 12. Bxg7 {[%clk 0:02:42]}  Kxg7 {[%clk 0:02:30]} 13. Be2 {[%clk 0:02:42]}  Rac8 {[%clk 0:02:18]} 14. h3 {[%clk 0:02:41]}  Bxf3 {[%clk 0:02:18]} 15. Bxf3 {[%clk 0:02:41]}  Ne5 {[%clk 0:02:18]} 16. Be2 {[%clk 0:02:37]}  Qb6 {[%clk 0:02:10]} 17. Qd4 {[%clk 0:02:32]}  Qxd4 {[%clk 0:02:02]} 18. cxd4 {[%clk 0:02:33]}  Nd7 {[%clk 0:02:02]} 19. c3 {[%clk 0:02:30]}  Nf6 {[%clk 0:02:02]} 20. Bf3 {[%clk 0:02:30]}  Rc7 {[%clk 0:02:01]} 21. Rhe1 {[%clk 0:02:31]}  e6 {[%clk 0:02:01]} 22. Kc2 {[%clk 0:02:31]}  b5 {[%clk 0:02:01]} 23. Kb3 {[%clk 0:02:24]}  Nd7 {[%clk 0:02:01]} 24. a4 {[%clk 0:02:18]}  bxa4+ {[%clk 0:01:56]} 25. Kxa4 {[%clk 0:02:19]}  Rb8 {[%clk 0:01:55]} 26. Ka3 {[%clk 0:02:19]}  Nb6 {[%clk 0:01:54]} 27. Ka2 {[%clk 0:02:19]}  Na4 {[%clk 0:01:46]} 28. Rd2 {[%clk 0:02:18]}  d5 {[%clk 0:01:46]} 29. Bd1 {[%clk 0:02:15]}  Nb6 {[%clk 0:01:44]} 30. Be2 {[%clk 0:02:15]}  Nc8 {[%clk 0:01:10]} 31. Bd3 {[%clk 0:02:08]}  Nd6 {[%clk 0:01:08]} 32. Ra1 {[%clk 0:02:03]}  Kf8 {[%clk 0:00:40]} 33. Rc2 {[%clk 0:02:03]}  Ke7 {[%clk 0:00:40]} 34. Kb1 {[%clk 0:02:02]}  Kd8 {[%clk 0:00:41]} 35. Kc1 {[%clk 0:02:00]}  Rb6 {[%clk 0:00:40]} 36. Re2 {[%clk 0:01:55]}  Rcb7 {[%clk 0:00:40]} 37. Ra2 {[%clk 0:01:55]}  h5 {[%clk 0:00:40]} 38. Kc2 {[%clk 0:01:54]}  h4 {[%clk 0:00:39]} 39. g3 {[%clk 0:01:53]}  hxg3 {[%clk 0:00:39]} 40. fxg3 {[%clk 0:01:54]}  Ke7 {[%clk 0:00:40]} 41. h4 {[%clk 0:01:54]}  Rc7 {[%clk 0:00:40]} 42. g4 {[%clk 0:01:53]}  Rb8 {[%clk 0:00:40]} 43. h5 {[%clk 0:01:49]}  gxh5 {[%clk 0:00:41]} 44. gxh5 {[%clk 0:01:50]}  Rh8 {[%clk 0:00:42]} 45. Rh2 {[%clk 0:01:51]}  f5 {[%clk 0:00:42]} 46. Ra6 {[%clk 0:01:49]}  Ne4 {[%clk 0:00:42]} 47. h6 {[%clk 0:01:45]}  Ng5 {[%clk 0:00:33]} 48. Rh1 {[%clk 0:01:35]}  Nf7 {[%clk 0:00:29]} 49. Re1 {[%clk 0:01:33]}  Rxh6 {[%clk 0:00:29]} 50. Bxf5 {[%clk 0:01:31]}  Ng5 {[%clk 0:00:30]} 51. Bd3 {[%clk 0:01:30]}  Nf3 {[%clk 0:00:29]} 52. Rf1 {[%clk 0:01:21]}  Rh2+ {[%clk 0:00:28]} 53. Kc1 {[%clk 0:01:19]}  Nxd4 {[%clk 0:00:29]} 54. Rg1 {[%clk 0:01:15]}  Nb3+ {[%clk 0:00:28]} 55. Kb1 {[%clk 0:01:16]}  Nc5 {[%clk 0:00:23]} 56. Rg7+ {[%clk 0:01:15]}  Kd8 {[%clk 0:00:24]} 57. Rg8+ {[%clk 0:01:15]}  Ke7 {[%clk 0:00:24]} 58. Rg7+ {[%clk 0:01:15]}  Kd8 {[%clk 0:00:24]} 59. Rd6+ {[%clk 0:01:14]}  Kc8 {[%clk 0:00:24]} 60. Rg8+ {[%clk 0:01:12]}  Kb7 {[%clk 0:00:24]} 61. Bb5 {[%clk 0:01:10]}  a6 {[%clk 0:00:25]} 62. Be8 {[%clk 0:01:03]}  Nd3 {[%clk 0:00:22]} 63. Rxe6 {[%clk 0:00:54]}  Rxb2+ {[%clk 0:00:21]} 64. Ka1 {[%clk 0:00:54]}  Rb6 {[%clk 0:00:16]} 65. Rxb6+ {[%clk 0:00:51]}  Kxb6 {[%clk 0:00:17]} 66. Bf7 {[%clk 0:00:52]}  Rxf7 {[%clk 0:00:17]} 0-1


[Site "https://www.chess.com"]

[Event "Titled Tuesday Blitz June 1 2021"]
[White "Kesgin, Halit Kaan"]
[Black "Siva Mahadevan"]
[WhiteFideId "6349137"]
[BlackFideId "25043153"]
[WhiteElo "2040"]
[BlackElo "2203"]
[Result "0-1"]
[Round "03"]
[TimeControl "180+1"]
[Date "2021.06.01"]
[WhiteClock "0:00:11"]
[BlackClock "0:00:18"]

1. e4 {[%clk 0:03:00]}  c5 {[%clk 0:02:59]} 2. Nf3 {[%clk 0:03:01]}  Nc6 {[%clk 0:02:59]} 3. Bb5 {[%clk 0:03:01]}  Na5 {[%clk 0:03:00]} 4. c3 {[%clk 0:02:30]}  a6 {[%clk 0:03:00]} 5. Ba4 {[%clk 0:02:27]}  b5 {[%clk 0:03:00]} 6. Bc2 {[%clk 0:02:28]}  Bb7 {[%clk 0:03:01]} 7. O-O {[%clk 0:02:27]}  e6 {[%clk 0:03:01]} 8. d4 {[%clk 0:02:27]}  cxd4 {[%clk 0:03:01]} 9. cxd4 {[%clk 0:02:28]}  Nf6 {[%clk 0:03:01]} 10. Re1 {[%clk 0:02:16]}  Be7 {[%clk 0:03:01]} 11. a3 {[%clk 0:02:02]}  O-O {[%clk 0:02:58]} 12. Nc3 {[%clk 0:02:02]}  Rc8 {[%clk 0:02:58]} 13. e5 {[%clk 0:01:55]}  Nd5 {[%clk 0:02:57]} 14. Ne4 {[%clk 0:01:55]}  f5 {[%clk 0:02:32]} 15. exf6 {[%clk 0:01:11]}  Nxf6 {[%clk 0:02:31]} 16. Nxf6+ {[%clk 0:01:11]}  Bxf6 {[%clk 0:02:32]} 17. Ne5 {[%clk 0:01:12]}  Bxe5 {[%clk 0:02:00]} 18. Rxe5 {[%clk 0:01:02]}  Qh4 {[%clk 0:01:56]} 19. Be3 {[%clk 0:00:54]}  Rxc2 {[%clk 0:01:24]} 20. Qxc2 {[%clk 0:00:50]}  Nc4 {[%clk 0:01:24]} 21. Rc5 {[%clk 0:00:15]}  Bxg2 {[%clk 0:00:28]} 22. Kxg2 {[%clk 0:00:11]}  Qg4+ {[%clk 0:00:27]} 23. Kh1 {[%clk 0:00:11]}  Qf3+ {[%clk 0:00:25]} 24. Kg1 {[%clk 0:00:12]}  Rf6 {[%clk 0:00:13]} 25. Rg5 {[%clk 0:00:11]}  Nxe3 {[%clk 0:00:12]} 26. Qd3 {[%clk 0:00:08]}  Qxf2+ {[%clk 0:00:12]} 27. Kh1 {[%clk 0:00:09]}  Qf3+ {[%clk 0:00:12]} 28. Kg1 {[%clk 0:00:09]}  Qf2+ {[%clk 0:00:13]} 29. Kh1 {[%clk 0:00:10]}  h6 {[%clk 0:00:13]} 30. Rg3 {[%clk 0:00:08]}  Nf5 {[%clk 0:00:14]} 31. Rf3 {[%clk 0:00:08]}  Qxb2 {[%clk 0:00:15]} 32. Rg1 {[%clk 0:00:08]}  Kh8 {[%clk 0:00:12]} 33. d5 {[%clk 0:00:07]}  Qe5 {[%clk 0:00:12]} 34. dxe6 {[%clk 0:00:07]}  dxe6 {[%clk 0:00:13]} 35. Qd8+ {[%clk 0:00:07]}  Kh7 {[%clk 0:00:14]} 36. Qd3 {[%clk 0:00:08]}  Qd5 {[%clk 0:00:13]} 37. Qxd5 {[%clk 0:00:08]}  exd5 {[%clk 0:00:14]} 38. Rgf1 {[%clk 0:00:09]}  Kg6 {[%clk 0:00:15]} 39. Rg1+ {[%clk 0:00:09]}  Kf7 {[%clk 0:00:15]} 40. Rgf1 {[%clk 0:00:10]}  Ke6 {[%clk 0:00:15]} 41. Re1+ {[%clk 0:00:11]}  Kd6 {[%clk 0:00:16]} 42. Ref1 {[%clk 0:00:11]}  g6 {[%clk 0:00:16]} 43. Rd3 {[%clk 0:00:12]}  Ng3+ {[%clk 0:00:16]} 44. Rxg3 {[%clk 0:00:10]}  Rxf1+ {[%clk 0:00:17]} 45. Kg2 {[%clk 0:00:11]}  Rf6 {[%clk 0:00:18]} 0-1


[Site "https://www.chess.com"]

[Event "Titled Tuesday Blitz June 1 2021"]
[White "Korkmaz, Necmettin"]
[Black "Demchenko, Anton"]
[WhiteFideId "6303285"]
[BlackFideId "4160258"]
[WhiteElo "2094"]
[BlackElo "2593"]
[Result "1/2-1/2"]
[Round "03"]
[TimeControl "180+1"]
[Date "2021.06.01"]
[WhiteClock "0:00:04"]
[BlackClock "0:00:07"]

1. e4 {[%clk 0:03:00]}  c5 {[%clk 0:02:59]} 2. Nc3 {[%clk 0:03:00]}  d6 {[%clk 0:02:59]} 3. f4 {[%clk 0:03:01]}  e6 {[%clk 0:02:58]} 4. Nf3 {[%clk 0:03:01]}  Bd7 {[%clk 0:02:57]} 5. Bc4 {[%clk 0:03:02]}  Nc6 {[%clk 0:02:57]} 6. O-O {[%clk 0:03:01]}  Be7 {[%clk 0:02:57]} 7. d3 {[%clk 0:03:01]}  Nf6 {[%clk 0:02:56]} 8. Qe1 {[%clk 0:02:59]}  Nd4 {[%clk 0:02:47]} 9. Nxd4 {[%clk 0:02:58]}  cxd4 {[%clk 0:02:48]} 10. Ne2 {[%clk 0:02:58]}  d5 {[%clk 0:02:49]} 11. exd5 {[%clk 0:02:56]}  exd5 {[%clk 0:02:50]} 12. Bb3 {[%clk 0:02:56]}  O-O {[%clk 0:02:44]} 13. f5 {[%clk 0:02:55]}  Re8 {[%clk 0:02:43]} 14. Qg3 {[%clk 0:02:48]}  Bd6 {[%clk 0:02:30]} 15. Bf4 {[%clk 0:02:45]}  Rxe2 {[%clk 0:02:18]} 16. Bxd6 {[%clk 0:02:44]}  a5 {[%clk 0:02:19]} 17. a4 {[%clk 0:02:38]}  Ra6 {[%clk 0:02:11]} 18. Bc7 {[%clk 0:02:19]}  Qc8 {[%clk 0:02:01]} 19. Rae1 {[%clk 0:01:47]}  Rxe1 {[%clk 0:01:57]} 20. Rxe1 {[%clk 0:01:48]}  Bxf5 {[%clk 0:01:57]} 21. Be5 {[%clk 0:01:47]}  h6 {[%clk 0:01:26]} 22. Bxd4 {[%clk 0:01:45]}  Qd7 {[%clk 0:01:24]} 23. Re5 {[%clk 0:01:28]}  Bg6 {[%clk 0:01:20]} 24. Qe1 {[%clk 0:01:16]}  Kh7 {[%clk 0:01:16]} 25. h3 {[%clk 0:01:13]}  b5 {[%clk 0:01:08]} 26. axb5 {[%clk 0:01:06]}  Qxb5 {[%clk 0:01:09]} 27. Bc4 {[%clk 0:01:06]}  Qa4 {[%clk 0:01:02]} 28. b3 {[%clk 0:00:59]}  Qc6 {[%clk 0:01:02]} 29. Bxa6 {[%clk 0:00:58]}  Qxa6 {[%clk 0:01:03]} 30. Re7 {[%clk 0:00:57]}  a4 {[%clk 0:01:02]} 31. bxa4 {[%clk 0:00:56]}  Qxa4 {[%clk 0:01:02]} 32. Qc3 {[%clk 0:00:54]}  Qa6 {[%clk 0:00:59]} 33. Bxf6 {[%clk 0:00:52]}  gxf6 {[%clk 0:01:00]} 34. Rc7 {[%clk 0:00:50]}  Qb6+ {[%clk 0:00:59]} 35. Qc5 {[%clk 0:00:49]}  Qe6 {[%clk 0:00:59]} 36. Re7 {[%clk 0:00:38]}  Qf5 {[%clk 0:00:56]} 37. Qf2 {[%clk 0:00:35]}  Qg5 {[%clk 0:00:55]} 38. Re8 {[%clk 0:00:32]}  h5 {[%clk 0:00:53]} 39. Kh2 {[%clk 0:00:23]}  h4 {[%clk 0:00:50]} 40. Qe3 {[%clk 0:00:22]}  Qh5 {[%clk 0:00:48]} 41. Rd8 {[%clk 0:00:20]}  Qf5 {[%clk 0:00:34]} 42. Re8 {[%clk 0:00:14]}  Kg7 {[%clk 0:00:29]} 43. Qf3 {[%clk 0:00:13]}  Qg5 {[%clk 0:00:29]} 44. c4 {[%clk 0:00:11]}  dxc4 {[%clk 0:00:27]} 45. dxc4 {[%clk 0:00:12]}  Bh5 {[%clk 0:00:11]} 46. Qe3 {[%clk 0:00:12]}  Qf5 {[%clk 0:00:11]} 47. c5 {[%clk 0:00:12]}  Qd7 {[%clk 0:00:07]} 48. Re7 {[%clk 0:00:09]}  Qd5 {[%clk 0:00:05]} 49. Qf4 {[%clk 0:00:08]}  Qxc5 {[%clk 0:00:04]} 50. Re3 {[%clk 0:00:06]}  Qg5 {[%clk 0:00:02]} 51. Qxg5+ {[%clk 0:00:06]}  fxg5 {[%clk 0:00:03]} 52. Re5 {[%clk 0:00:06]}  f6 {[%clk 0:00:03]} 53. Rc5 {[%clk 0:00:06]}  Kg6 {[%clk 0:00:04]} 54. g4 {[%clk 0:00:06]}  hxg3+ {[%clk 0:00:04]} 55. Kxg3 {[%clk 0:00:07]}  Be2 {[%clk 0:00:04]} 56. h4 {[%clk 0:00:07]}  Bh5 {[%clk 0:00:04]} 57. hxg5 {[%clk 0:00:08]}  fxg5 {[%clk 0:00:05]} 58. Rc6+ {[%clk 0:00:08]}  Kf5 {[%clk 0:00:06]} 59. Rc5+ {[%clk 0:00:08]}  Kg6 {[%clk 0:00:06]} 60. Re5 {[%clk 0:00:08]}  Kf6 {[%clk 0:00:07]} 61. Rc5 {[%clk 0:00:09]}  Bf7 {[%clk 0:00:07]} 62. Kf2 {[%clk 0:00:08]}  Be6 {[%clk 0:00:07]} 63. Ke3 {[%clk 0:00:09]}  Bf5 {[%clk 0:00:08]} 64. Kd4 {[%clk 0:00:08]}  g4 {[%clk 0:00:07]} 65. Ke3 {[%clk 0:00:08]}  Kg5 {[%clk 0:00:07]} 66. Kf2 {[%clk 0:00:09]}  Kf4 {[%clk 0:00:07]} 67. Rc4+ {[%clk 0:00:07]}  Be4 {[%clk 0:00:08]} 68. Kg1 {[%clk 0:00:06]}  g3 {[%clk 0:00:08]} 69. Rc3 {[%clk 0:00:06]}  Bf3 {[%clk 0:00:08]} 70. Rc4+ {[%clk 0:00:06]}  Be4 {[%clk 0:00:08]} 71. Rb4 {[%clk 0:00:05]}  Kf3 {[%clk 0:00:07]} 72. Rb3+ {[%clk 0:00:05]}  Kf4 {[%clk 0:00:07]} 73. Rb4 {[%clk 0:00:05]}  Ke3 {[%clk 0:00:06]} 74. Rb3+ {[%clk 0:00:03]}  Kf4 {[%clk 0:00:07]} 75. Rb4 {[%clk 0:00:04]} 1/2-1/2


[Site "https://www.chess.com"]

[Event "Titled Tuesday Blitz June 1 2021"]
[White "Kosteniuk, Alexandra"]
[Black "Sjugirov, Sanan"]
[WhiteFideId "4128125"]
[BlackFideId "4189302"]
[WhiteElo "2521"]
[BlackElo "2472"]
[Result "0-1"]
[Round "03"]
[TimeControl "180+1"]
[Date "2021.06.01"]
[WhiteClock "0:00:07"]
[BlackClock "0:00:16"]

1. e4 {[%clk 0:03:00]}  c5 {[%clk 0:02:58]} 2. c3 {[%clk 0:03:00]}  Nf6 {[%clk 0:02:57]} 3. e5 {[%clk 0:03:01]}  Nd5 {[%clk 0:02:57]} 4. d4 {[%clk 0:03:01]}  cxd4 {[%clk 0:02:57]} 5. Nf3 {[%clk 0:03:02]}  d6 {[%clk 0:02:47]} 6. cxd4 {[%clk 0:03:01]}  Nc6 {[%clk 0:02:47]} 7. Bc4 {[%clk 0:03:01]}  Nb6 {[%clk 0:02:46]} 8. Bb5 {[%clk 0:03:01]}  a6 {[%clk 0:02:46]} 9. Bxc6+ {[%clk 0:02:58]}  bxc6 {[%clk 0:02:47]} 10. O-O {[%clk 0:02:55]}  Bg4 {[%clk 0:02:46]} 11. Nbd2 {[%clk 0:02:50]}  e6 {[%clk 0:02:44]} 12. Qc2 {[%clk 0:02:48]}  Rc8 {[%clk 0:02:33]} 13. Qd3 {[%clk 0:02:44]}  a5 {[%clk 0:02:28]} 14. Ne4 {[%clk 0:02:31]}  d5 {[%clk 0:02:07]} 15. Ng3 {[%clk 0:02:30]}  Be7 {[%clk 0:01:43]} 16. h3 {[%clk 0:02:30]}  Bxf3 {[%clk 0:01:43]} 17. Qxf3 {[%clk 0:02:30]}  O-O {[%clk 0:01:30]} 18. Qg4 {[%clk 0:02:28]}  Kh8 {[%clk 0:01:27]} 19. f4 {[%clk 0:02:23]}  f5 {[%clk 0:01:19]} 20. exf6 {[%clk 0:02:13]}  Bxf6 {[%clk 0:01:19]} 21. Be3 {[%clk 0:01:49]}  Nc4 {[%clk 0:01:19]} 22. Bf2 {[%clk 0:01:49]}  Nxb2 {[%clk 0:01:15]} 23. Qe2 {[%clk 0:01:35]}  Nc4 {[%clk 0:01:12]} 24. Qxe6 {[%clk 0:01:32]}  Bh4 {[%clk 0:00:46]} 25. Rae1 {[%clk 0:01:05]}  Nd2 {[%clk 0:00:40]} 26. Nf5 {[%clk 0:01:01]}  Bxf2+ {[%clk 0:00:32]} 27. Rxf2 {[%clk 0:01:01]}  Ne4 {[%clk 0:00:33]} 28. Rb2 {[%clk 0:01:01]}  Re8 {[%clk 0:00:21]} 29. Qf7 {[%clk 0:00:58]}  Rc7 {[%clk 0:00:21]} 30. Nd6 {[%clk 0:00:17]}  Rf8 {[%clk 0:00:18]} 31. Qe6 {[%clk 0:00:07]}  Nxd6 {[%clk 0:00:16]} 32. Re5 {[%clk 0:00:07]}  Nc4 {[%clk 0:00:16]} 0-1


[Site "https://www.chess.com"]

[Event "Titled Tuesday Blitz June 1 2021"]
[White "Lagarde, Maxime"]
[Black "Krishna Teja, N"]
[WhiteFideId "662399"]
[BlackFideId "5001498"]
[WhiteElo "2630"]
[BlackElo "2278"]
[Result "1-0"]
[Round "03"]
[TimeControl "180+1"]
[Date "2021.06.01"]
[WhiteClock "0:00:29"]
[BlackClock "0:00:15"]

1. e3 {[%clk 0:02:24]}  e5 {[%clk 0:02:52]} 2. Nf3 {[%clk 0:02:25]}  Nc6 {[%clk 0:02:50]} 3. d4 {[%clk 0:02:25]}  exd4 {[%clk 0:02:49]} 4. exd4 {[%clk 0:02:25]}  d5 {[%clk 0:02:50]} 5. Bb5 {[%clk 0:02:25]}  Bg4 {[%clk 0:02:49]} 6. h3 {[%clk 0:02:24]}  Bh5 {[%clk 0:02:44]} 7. g4 {[%clk 0:02:24]}  Bg6 {[%clk 0:02:44]} 8. Ne5 {[%clk 0:02:25]}  Ne7 {[%clk 0:02:44]} 9. h4 {[%clk 0:02:18]}  f6 {[%clk 0:02:42]} 10. Nxg6 {[%clk 0:02:10]}  hxg6 {[%clk 0:02:43]} 11. Be3 {[%clk 0:02:06]}  a6 {[%clk 0:02:38]} 12. Ba4 {[%clk 0:02:06]}  Kf7 {[%clk 0:02:36]} 13. Qf3 {[%clk 0:02:04]}  b5 {[%clk 0:02:34]} 14. Bb3 {[%clk 0:02:04]}  Na5 {[%clk 0:02:34]} 15. Nc3 {[%clk 0:02:03]}  Nc4 {[%clk 0:02:30]} 16. O-O-O {[%clk 0:02:02]}  c6 {[%clk 0:02:28]} 17. Ne2 {[%clk 0:02:00]}  Nc8 {[%clk 0:02:25]} 18. c3 {[%clk 0:02:00]}  N8d6 {[%clk 0:02:15]} 19. Bc2 {[%clk 0:02:00]}  Qd7 {[%clk 0:02:06]} 20. Nf4 {[%clk 0:01:58]}  Ne4 {[%clk 0:01:29]} 21. Bxe4 {[%clk 0:01:52]}  dxe4 {[%clk 0:01:30]} 22. Qxe4 {[%clk 0:01:53]}  f5 {[%clk 0:01:19]} 23. gxf5 {[%clk 0:01:47]}  gxf5 {[%clk 0:01:20]} 24. Qg2 {[%clk 0:01:47]}  Qd6 {[%clk 0:01:10]} 25. h5 {[%clk 0:01:45]}  Be7 {[%clk 0:01:10]} 26. Qg6+ {[%clk 0:01:41]}  Qxg6 {[%clk 0:01:09]} 27. hxg6+ {[%clk 0:01:42]}  Kf6 {[%clk 0:01:07]} 28. Nh5+ {[%clk 0:01:42]}  Kxg6 {[%clk 0:00:53]} 29. Rdg1+ {[%clk 0:01:41]}  Kf7 {[%clk 0:00:53]} 30. Rxg7+ {[%clk 0:01:41]}  Kf8 {[%clk 0:00:54]} 31. Rgg1 {[%clk 0:01:35]}  Kf7 {[%clk 0:00:52]} 32. Ng3 {[%clk 0:01:31]}  Kf6 {[%clk 0:00:34]} 33. Bf4 {[%clk 0:01:30]}  Bd6 {[%clk 0:00:31]} 34. Bxd6 {[%clk 0:01:25]}  Nxd6 {[%clk 0:00:32]} 35. Nh5+ {[%clk 0:01:22]}  Kf7 {[%clk 0:00:22]} 36. Rg7+ {[%clk 0:01:21]}  Kf8 {[%clk 0:00:22]} 37. Rhg1 {[%clk 0:01:22]}  Re8 {[%clk 0:00:21]} 38. Nf6 {[%clk 0:00:53]}  Re6 {[%clk 0:00:17]} 39. Nd7+ {[%clk 0:00:49]}  Ke8 {[%clk 0:00:17]} 40. Ne5 {[%clk 0:00:46]}  Kf8 {[%clk 0:00:17]} 41. Ra7 {[%clk 0:00:44]}  Rhh6 {[%clk 0:00:17]} 42. Nxc6 {[%clk 0:00:31]}  Ne4 {[%clk 0:00:16]} 43. Ne5 {[%clk 0:00:29]}  Nxf2 {[%clk 0:00:16]} 44. Rf7+ {[%clk 0:00:28]}  Ke8 {[%clk 0:00:15]} 45. Rg8# {[%clk 0:00:29]} 1-0


[Site "https://www.chess.com"]

[Event "Titled Tuesday Blitz June 1 2021"]
[White "Makhnev, Denis"]
[Black "Sanal, Vahap"]
[WhiteFideId "13707647"]
[BlackFideId "6300545"]
[WhiteElo "2549"]
[BlackElo "2507"]
[Result "1-0"]
[Round "03"]
[TimeControl "180+1"]
[Date "2021.06.01"]
[WhiteClock "0:00:15"]
[BlackClock "0:00:21"]

1. Nf3 {[%clk 0:03:00]}  d5 {[%clk 0:02:58]} 2. d4 {[%clk 0:02:55]}  Nf6 {[%clk 0:02:55]} 3. Bf4 {[%clk 0:02:55]}  c5 {[%clk 0:02:52]} 4. c3 {[%clk 0:02:53]}  Nc6 {[%clk 0:02:48]} 5. dxc5 {[%clk 0:02:50]}  a5 {[%clk 0:02:48]} 6. e3 {[%clk 0:02:48]}  e6 {[%clk 0:02:48]} 7. Bb5 {[%clk 0:02:44]}  Bxc5 {[%clk 0:02:48]} 8. Nbd2 {[%clk 0:02:43]}  O-O {[%clk 0:02:48]} 9. O-O {[%clk 0:02:42]}  Qb6 {[%clk 0:02:45]} 10. a4 {[%clk 0:02:35]}  Na7 {[%clk 0:02:44]} 11. Be2 {[%clk 0:02:34]}  Nc6 {[%clk 0:02:41]} 12. Qb3 {[%clk 0:02:29]}  Qd8 {[%clk 0:02:39]} 13. Bb5 {[%clk 0:02:23]}  Nd7 {[%clk 0:02:35]} 14. e4 {[%clk 0:02:13]}  Nf6 {[%clk 0:02:13]} 15. exd5 {[%clk 0:02:07]}  Nxd5 {[%clk 0:02:11]} 16. Bg3 {[%clk 0:02:07]}  Bd7 {[%clk 0:02:03]} 17. Rad1 {[%clk 0:02:05]}  Nf6 {[%clk 0:01:56]} 18. Nc4 {[%clk 0:02:02]}  Qe7 {[%clk 0:01:56]} 19. Nd6 {[%clk 0:01:46]}  Rab8 {[%clk 0:01:50]} 20. Rfe1 {[%clk 0:01:43]}  e5 {[%clk 0:01:30]} 21. Nxe5 {[%clk 0:01:35]}  Be6 {[%clk 0:01:28]} 22. Bc4 {[%clk 0:01:01]}  Nxe5 {[%clk 0:00:49]} 23. Bxe5 {[%clk 0:00:57]}  Ng4 {[%clk 0:00:45]} 24. Bg3 {[%clk 0:00:52]}  Qf6 {[%clk 0:00:36]} 25. Ne4 {[%clk 0:00:51]}  Qg6 {[%clk 0:00:28]} 26. Nxc5 {[%clk 0:00:48]}  Bxc4 {[%clk 0:00:29]} 27. Qxc4 {[%clk 0:00:48]}  Rbc8 {[%clk 0:00:29]} 28. Qb5 {[%clk 0:00:41]}  h5 {[%clk 0:00:28]} 29. Nd7 {[%clk 0:00:38]}  Rfd8 {[%clk 0:00:28]} 30. Ne5 {[%clk 0:00:33]}  Nxe5 {[%clk 0:00:28]} 31. Qxe5 {[%clk 0:00:32]}  Qc2 {[%clk 0:00:26]} 32. Rxd8+ {[%clk 0:00:31]}  Rxd8 {[%clk 0:00:27]} 33. Qxh5 {[%clk 0:00:27]}  Qxa4 {[%clk 0:00:25]} 34. Qe2 {[%clk 0:00:24]}  Qb3 {[%clk 0:00:23]} 35. h4 {[%clk 0:00:24]}  a4 {[%clk 0:00:23]} 36. h5 {[%clk 0:00:24]}  Qd5 {[%clk 0:00:23]} 37. Bf4 {[%clk 0:00:21]}  Qf5 {[%clk 0:00:23]} 38. Be3 {[%clk 0:00:20]}  Rd6 {[%clk 0:00:21]} 39. Qf3 {[%clk 0:00:19]}  Qb5 {[%clk 0:00:21]} 40. Qe2 {[%clk 0:00:19]}  Qf5 {[%clk 0:00:20]} 41. Rd1 {[%clk 0:00:19]}  Re6 {[%clk 0:00:21]} 42. Qf3 {[%clk 0:00:18]}  Qb5 {[%clk 0:00:19]} 43. Rd8+ {[%clk 0:00:17]}  Re8 {[%clk 0:00:20]} 44. Rxe8+ {[%clk 0:00:15]}  Qxe8 {[%clk 0:00:21]} 45. h6 {[%clk 0:00:16]}  Kh7 {[%clk 0:00:22]} 46. Qf5+ {[%clk 0:00:15]}  Kh8 {[%clk 0:00:20]} 47. Qg5 {[%clk 0:00:15]}  gxh6 {[%clk 0:00:19]} 48. Qxh6+ {[%clk 0:00:14]}  Kg8 {[%clk 0:00:20]} 49. Bd4 {[%clk 0:00:14]}  f6 {[%clk 0:00:18]} 50. Qxf6 {[%clk 0:00:13]}  Qd7 {[%clk 0:00:17]} 51. Qh8+ {[%clk 0:00:13]}  Kf7 {[%clk 0:00:18]} 52. Qg7+ {[%clk 0:00:13]}  Ke6 {[%clk 0:00:19]} 53. Qxd7+ {[%clk 0:00:14]}  Kxd7 {[%clk 0:00:20]} 54. g4 {[%clk 0:00:14]}  Ke6 {[%clk 0:00:21]} 55. f4 {[%clk 0:00:15]} 1-0


[Site "https://www.chess.com"]

[Event "Titled Tuesday Blitz June 1 2021"]
[White "Maly, Alexey"]
[Black "Nguyen, Duc Hoa"]
[WhiteFideId "14103184"]
[BlackFideId "12401358"]
[WhiteElo "2768"]
[BlackElo "2566"]
[Result "1/2-1/2"]
[Round "03"]
[TimeControl "180+1"]
[Date "2021.06.01"]
[WhiteClock "0:01:38"]
[BlackClock "0:00:21"]

1. d4 {[%clk 0:03:00]}  d5 {[%clk 0:02:59]} 2. c4 {[%clk 0:03:01]}  e6 {[%clk 0:02:59]} 3. Nf3 {[%clk 0:03:01]}  Nf6 {[%clk 0:02:59]} 4. e3 {[%clk 0:03:01]}  c6 {[%clk 0:02:55]} 5. Nbd2 {[%clk 0:03:01]}  Nbd7 {[%clk 0:02:50]} 6. Bd3 {[%clk 0:03:01]}  Bd6 {[%clk 0:02:24]} 7. O-O {[%clk 0:03:01]}  e5 {[%clk 0:02:16]} 8. cxd5 {[%clk 0:02:59]}  cxd5 {[%clk 0:02:15]} 9. e4 {[%clk 0:03:00]}  O-O {[%clk 0:02:11]} 10. exd5 {[%clk 0:03:00]}  exd4 {[%clk 0:02:11]} 11. Ne4 {[%clk 0:02:59]}  Nxe4 {[%clk 0:01:55]} 12. Bxe4 {[%clk 0:03:00]}  Nc5 {[%clk 0:01:54]} 13. Qxd4 {[%clk 0:02:56]}  Nxe4 {[%clk 0:01:53]} 14. Qxe4 {[%clk 0:02:57]}  Re8 {[%clk 0:01:54]} 15. Qd4 {[%clk 0:02:57]}  Bf5 {[%clk 0:01:51]} 16. Re1 {[%clk 0:02:54]}  Rxe1+ {[%clk 0:01:41]} 17. Nxe1 {[%clk 0:02:55]}  Qc7 {[%clk 0:01:35]} 18. Nf3 {[%clk 0:02:53]}  Bc5 {[%clk 0:01:21]} 19. Qf4 {[%clk 0:02:34]}  Qd7 {[%clk 0:01:14]} 20. Be3 {[%clk 0:02:29]}  Bxe3 {[%clk 0:01:11]} 21. Qxe3 {[%clk 0:02:30]}  Qxd5 {[%clk 0:01:12]} 22. Re1 {[%clk 0:02:28]}  h6 {[%clk 0:01:11]} 23. a3 {[%clk 0:02:25]}  a5 {[%clk 0:00:57]} 24. h3 {[%clk 0:02:22]}  Rc8 {[%clk 0:00:55]} 25. Nd4 {[%clk 0:02:15]}  Bg6 {[%clk 0:00:52]} 26. Qe5 {[%clk 0:02:15]}  Rd8 {[%clk 0:00:43]} 27. Qxd5 {[%clk 0:02:04]}  Rxd5 {[%clk 0:00:44]} 28. Nf3 {[%clk 0:02:00]}  Rb5 {[%clk 0:00:43]} 29. Re2 {[%clk 0:01:59]}  Kf8 {[%clk 0:00:38]} 30. Nd4 {[%clk 0:01:56]}  Rd5 {[%clk 0:00:37]} 31. Rd2 {[%clk 0:01:56]}  Ke7 {[%clk 0:00:31]} 32. f3 {[%clk 0:01:56]}  Kd7 {[%clk 0:00:30]} 33. Kf2 {[%clk 0:01:56]}  Kc7 {[%clk 0:00:19]} 34. Ke3 {[%clk 0:01:56]}  Kb6 {[%clk 0:00:19]} 35. b4 {[%clk 0:01:55]}  axb4 {[%clk 0:00:18]} 36. axb4 {[%clk 0:01:56]}  Re5+ {[%clk 0:00:19]} 37. Kf4 {[%clk 0:01:54]}  Rd5 {[%clk 0:00:19]} 38. Ke3 {[%clk 0:01:53]}  Re5+ {[%clk 0:00:19]} 39. Kf4 {[%clk 0:01:52]}  Rd5 {[%clk 0:00:20]} 40. h4 {[%clk 0:01:52]}  f6 {[%clk 0:00:19]} 41. Ke3 {[%clk 0:01:52]}  Re5+ {[%clk 0:00:20]} 42. Kf4 {[%clk 0:01:51]}  Rd5 {[%clk 0:00:20]} 43. Ke3 {[%clk 0:01:47]}  Re5+ {[%clk 0:00:20]} 44. Kf2 {[%clk 0:01:46]}  Rd5 {[%clk 0:00:21]} 45. Ke3 {[%clk 0:01:38]} 1/2-1/2


[Site "https://www.chess.com"]